Cogmind - Beta 16.1 @@@ ROGUE MODE // 2026.03.11 @ 18:20:33 Player: CometVoid Result: Destroyed by as-77689 with Assembled Heavy Rifle Performance ------------- Evolutions (1) 500 Regions Visited (3) 600 Robots Destroyed (35) 175 Value Destroyed (854) 854 Prototype IDs (0) 0 Alien Tech Used (0) 0 Bonus (0) 0 TOTAL SCORE: 2129 Bonus ------- None Cogmind --------- Core Integrity 0/400 Matter 290/300 Energy 159/160 System Corruption 0% Temperature Cool (0) Movement Rolling (95) Ox1 Location -9/Mines Parts ------- > --- POWER (1) -------- Light Nuclear Core > --- PROPULSION (3) --- Aluminum Leg Wheel > --- UTILITY (3) ------ Medium Storage Unit ECM Suite > --- WEAPON (2) ------- Heavy Hammer > --- INVENTORY (10) --- Light Ion Engine Improved Ion Engine Cooling System Small Storage Unit Transport Network Coupler EM Shotgun Small Laser Grenade Launcher Mining Laser Peak State ------------ > --- POWER ------------ Light Nuclear Core > --- PROPULSION ------- Light Treads Aluminum Leg Aluminum Leg > --- UTILITY ---------- Small Storage Unit ECM Suite Power Shielding > --- WEAPON ----------- Spread Laser Heavy Hammer > --- INVENTORY -------- Light Ion Engine Improved Ion Engine Aluminum Leg Signal Interpreter EM Shotgun Small Laser Grenade Launcher Mining Laser [Rating: 14] Favorites ----------- Power Ion Engine Engine Ion Engine Power Core Light Nuclear Core Propulsion Hover Unit Treads Light Treads Leg Aluminum Leg Wheel Wheel Hover Unit Hover Unit Utility Small Storage Unit Device Seismic Detector Storage Small Storage Unit Protection Power Shielding Weapon Assault Rifle Energy Gun Spread Laser Ballistic Gun Assault Rifle Launcher Grenade Launcher Special Weapon Mining Laser Impact Weapon Heavy Hammer Build | -11 -10 -9 -9 ------- Run | Yrd Mat Mat Min Slots Evolved 2 | . . 2 . Power . | . . . . Propulsion 1 | . . 1 . Utility 1 | . . 1 . Weapon . | . . . . Parts Attached 33 | 7 8 17 1 Power 4 | 2 . 2 . Engine 3 | 2 . 1 . Core 1 | . . 1 . Reactor . | . . . . Propulsion 15 | 2 3 9 1 Treads 3 | 2 . 1 . Leg 3 | . . 3 . Wheel 2 | . . 1 1 Hover 7 | . 3 4 . Flight . | . . . . Utility 6 | 1 2 3 . Device 2 | . 1 1 . Storage 2 | 1 . 1 . Processor . | . . . . Hackware . | . . . . Protection 2 | . 1 1 . Artifact . | . . . . Weapon 8 | 2 3 3 . Energy Gun 1 | . . 1 . Energy Cannon . | . . . . Ballistic Gun 4 | 2 1 1 . Ballistic Cannon . | . . . . Launcher 1 | . 1 . . Special Weapon 1 | . 1 . . Impact Weapon 1 | . . 1 . Slashing Weapon . | . . . . Piercing Weapon . | . . . . Special Melee Weapon . | . . . . Unidentified Prototypes . | . . . . Parts Lost 15 | . 1 10 4 Power 3 | . 1 2 . Propulsion 8 | . . 6 2 Utility 2 | . . 1 1 Weapon 2 | . . 1 1 Highest Loss Streak 7 | . 1 7 4 To Critical Strikes . | . . . . Average Backups 7 | 5 7 7 10 Power . | . . 1 2 Propulsion 3 | 3 4 2 1 Utility . | . . 1 3 Weapon 2 | 1 1 2 4 Tool/Special . | . . . . Unused Backups 13 | . 4 4 5 Power 2 | . . . 2 Propulsion 4 | . 3 1 . Utility 1 | . . 1 . Weapon 6 | . 1 2 3 Tool/Special . | . . . . Average Slot Usage (%) 89 | . 92 82 98 Engine 8 | . 10 7 . Core 2 | . . 2 11 Treads 2 | . 4 2 . Leg 5 | . . 5 32 Hover 19 | . 23 19 . Device 10 | . 11 8 11 Storage 12 | . 14 11 11 Protection 4 | . 1 5 11 Energy Gun 3 | . . 5 10 Ballistic Gun 6 | . 11 2 . Launcher 4 | . 7 1 . Special Weapon 3 | . 6 1 . Impact Weapon 4 | . . 7 11 Peak Build Rating 14 | 6 7 14 14 Average Rating 8 | 4 6 9 13 On Entrance 6 | . 6 7 14 Avg Prop Armor Cover (%) 10 | . . 10 . Naked Turns . | . . . . Heaviest Build 24 | 14 15 24 24 Greatest Support 40 | 40 40 30 30 Greatest Overweight (x) 2 | . 2 1 2 Average Overweight (x) . | . . . . Largest Inventory Capacity 10 | 8 8 10 10 Average Capacity 8 | 6 8 8 10 Most Carried 10 | 8 8 10 10 Average Carried 7 | 5 7 7 9 Final Capacity 10 | 8 8 10 10 Final Carried 10 | 8 8 10 9 Class Distribution -------------------- 79% | Mutant 20% | Scavenger-Mutant Dominant Class ---------------- Mutant | -10/Materials Mutant | -9/Materials Scavenger-Mutant | -9/Mines Resources | -11 -10 -9 -9 ----------- Run | Yrd Mat Mat Min Matter Collected 756 | 197 103 456 . Remotely . | . . . . Salvage Created 908 | 29 270 582 27 Parts 58 | 3 16 39 . Haulers Intercepted 2 | . . 2 . Recyclers Shooed 1 | . 1 . . Parts Field Recycled . | . . . . Retrieved Matter . | . . . . Parts Self-Destructed . | . . . . Prevented . | . . . . Parts Restored . | . . . . Kills | -11 -10 -9 -9 ------- Run | Yrd Mat Mat Min Combat Hostiles Destroyed 25 | . 7 18 . Melee 2 | . . 2 . Guns 9 | . . 9 . Cannons 2 | . . 2 . AOE 7 | . 7 . . Classes Destroyed 8 | 1 4 3 . Worker 3 | . 1 1 1 Builder 2 | . 2 . . Tunneler 1 | 1 . . . Hauler 2 | . . 2 . Operator 2 | . 1 1 . Swarmer 6 | . . 6 . Grunt 16 | . 7 9 . Sentry 3 | . . 3 . Best Kill Streak 11 | 1 4 11 1 Combat Bots Only 11 | . 3 11 . Max Kills in Single Turn 2 | 1 2 1 1 Gunslinging . | . . . . Exploded 2 | . 2 . . Melee 1 | . . 1 . Uniques/NPCs Destroyed . | . . . . Combat | -11 -10 -9 -9 -------- Run | Yrd Mat Mat Min Hostile Shots Fired 134 | . 13 109 12 Missed 39 | . 3 32 4 Hits 95 | . 10 77 8 Projectile 95 | . 10 77 8 AOE 7 | . . . 7 Damage Taken 1337 | . 146 841 350 Core 440 | . 27 277 136 Absorbed by Shields . | . . . . Redirected to Shielding 22 | . . 18 4 Core Remaining (%) 94 | 100 89 . . Volleys Fired 81 | 1 44 36 . Largest 2 | 2 2 1 . Hottest 100 | 40 100 100 . Shots Fired 90 | 2 52 36 . Gun 57 | 2 27 28 . Cannon . | . . . . Launcher 10 | . 10 . . Special 23 | . 15 8 . Kinetic 34 | 2 27 5 . Thermal 46 | . 15 31 . Explosive 10 | . 10 . . Electromagnetic . | . . . . Robot Hit Streak 10 | 2 5 10 . Robot Miss Streak 7 | . 6 7 . Penetration Max . | . . . . Secondary Targets . | . . . . Shots Hit Robots 68 | 2 19 46 1 Core Hits 69 | 1 21 47 . Critical Kills 2 | . . 2 . Critical Parts Destroyed 2 | . . 2 . Critical Strikes 4 | . . 4 . Smash 4 | . . 4 . Melee Attacks 30 | . . 29 1 Impact 30 | . . 29 1 Slashing . | . . . . Piercing . | . . . . Sneak Attacks 5 | . . 4 1 Combat Hostiles . | . . . . Follow-up Attacks . | . . . . Damage Inflicted 2300 | 23 875 1293 109 Guns 500 | 23 135 342 . Cannons . | . . . . Explosions 716 | . 716 . . Melee 962 | . . 853 109 Ramming 2 | . . 2 . Kinetic 176 | 23 135 18 . Thermal 444 | . 24 420 . Explosive 716 | . 716 . . Electromagnetic . | . . . . Impact 962 | . . 853 109 Slashing . | . . . . Piercing . | . . . . Highest Corruption 1 | . 1 . . Average Corruption 1 | . 1 . . Corruption Purged . | . . . . Corruption Blocked . | . . . . Effects 5 | . 5 . . Matter Fused 2 | . 2 . . Heat Flow Errors 1 | . 1 . . Parts Rejected 1 | . 1 . . Data Loss (minor) 1 | . 1 . . Overload Shots . | . . . . Overflow Damage 263 | . . 179 84 Projectiles 4 | . . 4 . Explosions . | . . . . Melee 259 | . . 175 84 Knockbacks 5 | . . 5 . Impact 4 | . . 4 . Kinetic . | . . . . Secondary 1 | . . 1 . Self-Inflicted Damage 12 | . 11 1 . Shots 1 | . 1 . . Rammed 1 | . . 1 . Targets Rammed 1 | . . 1 . Kicked . | . . . . Crushed . | . . . . Highest Temperature 217 | . 217 212 . Average Temperature 47 | . 23 69 . Received Heat Transfer 372 | . 75 297 . Effects 2 | . . 2 . Interference 2 | . . 2 . Siege Activations . | . . . . Martial Activations . | . . . . Shielding Activations . | . . . . Robots Disrupted . | . . . . Combat Hostiles . | . . . . Robots Corrupted 6 | . . 6 . Combat Hostiles 5 | . . 5 . Parts Fried 7 | . . 7 . Impact Corruptions 11 | . . 9 2 Robots Melted . | . . . . Combat Hostiles . | . . . . Parts Melted . | . . . . Heat Transferred 660 | . 50 610 . Parts Sabotaged . | . . . . Parts Stolen . | . . . . Parts Stripped . | . . . . Power Chain Reactions . | . . . . Alert | -11 -10 -9 -9 ------- Run | Yrd Mat Mat Min Maximum Alert Level 1 | . . 1 . Low Security (%) 90 | 100 100 76 100 Level 1 9 | . . 23 . Level 2 . | . . . . Level 3 . | . . . . Level 4 . | . . . . Level 5 . | . . . . High Security . | . . . . Max Security . | . . . . Peak Influence 314 | 5 149 314 5 Initial . | . . . . Average 60 | . 50 98 . Influence Increases 903 | 5 281 612 5 Destroy 0b10 Robot/C 500 | . 140 360 . Destroy 0b10 Robot/NC 50 | 5 20 20 5 Destroy Leader 124 | . 30 94 . Successful Hack 39 | . 24 15 . Disable Machine 30 | . 30 . . Destroy Structure 40 | . 37 3 . Partial Spotted 15 | . . 15 . Lose Combat Pursuer 105 | . . 105 . Influence Decreases 903 | 5 281 611 6 Entered New Map 1 | . . . 1 Time Decay 404 | 5 181 213 5 Lost Part 110 | . 10 100 . Purge Threat 388 | . 90 298 . Squads Dispatched 6 | . 2 4 . Investigation 4 | . 2 2 . Extermination . | . . . . Reinforcement 2 | . . 2 . Assault . | . . . . Garrison . | . . . . Intercept . | . . . . Searches Triggered . | . . . . Construction Impeded . | . . . . Haulers Reinforced . | . . . . Active Scanning Responses . | . . . . Cargo Convoy Interrupts . | . . . . Stealth | -11 -10 -9 -9 --------- Run | Yrd Mat Mat Min Distress Signals 2 | . . 2 . Communications Jammed . | . . . . Distress Signals . | . . . . Times Spotted 72 | . 20 41 11 Peak Tracking Total 19 | . 4 10 19 Tactical Retreats 7 | . 1 6 . Traps | -11 -10 -9 -9 ------- Run | Yrd Mat Mat Min Traps Triggered 1 | . . 1 . Indirectly . | . . . . Trap Hack Attempts . | . . . . Triggered . | . . . . Disarmed . | . . . . Reprogrammed . | . . . . Reused . | . . . . Traps Extracted . | . . . . Installed . | . . . . Triggered . | . . . . Machines | -11 -10 -9 -9 ---------- Run | Yrd Mat Mat Min Machines Disabled 2 | . 2 . . Max in Single Turn 1 | . 1 . . Machines Repaired . | . . . . Machines Dismantled . | . . . . Machines Sabotaged . | . . . . Overloaded Fab Kills . | . . . . Hacking | -11 -10 -9 -9 --------- Run | Yrd Mat Mat Min Machines Accessed 14 | . 8 6 . Terminals 13 | . 7 6 . Fabricators . | . . . . Repair Stations . | . . . . Recycling Units 1 | . 1 . . Scanalyzers . | . . . . Garrison Access . | . . . . Total Hacks 50 | . 32 18 . Successful 20 | . 10 10 . Failed 28 | . 21 7 . Catastrophic 3 | . 2 1 . Database Lockouts 2 | . 1 1 . Manual 42 | . 26 16 . Terminals 45 | . 27 18 . Fabricators . | . . . . Repair Stations . | . . . . Recycling Units 5 | . 5 . . Scanalyzers . | . . . . Garrison Access . | . . . . Terminal Hacks 13 | . 6 7 . Record 1 | . . 1 . Part Schematic 6 | . 4 2 . Terminal Index 2 | . 1 1 . Alert Level 1 | . . 1 . Unreport Threat 3 | . 1 2 . Fabricator Hacks . | . . . . Repair Station Hacks . | . . . . Recycling Unit Hacks 3 | . 3 . . Process 1 | . 1 . . Report Inventory 1 | . 1 . . Retrieve Matter 1 | . 1 . . Scanalyzer . | . . . . Garrison Access Hacks . | . . . . Unauthorized Hacks 4 | . 1 3 . Terminals 4 | . 1 3 . Botnet 4 | . 1 3 . Fabricators . | . . . . Repair Stations . | . . . . Recycling Units . | . . . . Scanalyzers . | . . . . Garrison Access . | . . . . Data Cores Recovered . | . . . . Used . | . . . . Hacking Detections 14 | . 8 6 . Full Trace Events 11 | . 7 4 . Feedback Events 1 | . 1 . . Corruption 1 | . 1 . . Feedback Blocked . | . . . . Robot Schematics Acquired . | . . . . Robots Built . | . . . . Authchips . | . . . . Time . | . . . . Total Robot Build Rating . | . . . . Part Schematics Acquired 6 | . 4 2 . Parts Built . | . . . . Authchips . | . . . . Time . | . . . . Total Part Build Rating . | . . . . Part Studies Acquired . | . . . . Parts Repaired . | . . . . Time . | . . . . Parts Recycled . | . . . . Recycled Matter 3 | . 3 . . Retrieved Matter . | . . . . Retrieved Components . | . . . . Parts Scanalyzed . | . . . . Part Schematics Acquired . | . . . . Parts Damaged . | . . . . Bothacking | -11 -10 -9 -9 ------------ Run | Yrd Mat Mat Min Used RIF Installer . | . . . . Robots Hacked . | . . . . Non-combat . | . . . . Combat . | . . . . Robot Hacks Applied . | . . . . Relay Couplers Released . | . . . . Fabnet Peak Effective % . | . . . . Robots Rewired . | . . . . Allies Hacked . | . . . . Hacks Repelled . | . . . . Allies | -11 -10 -9 -9 -------- Run | Yrd Mat Mat Min Total Allies . | . . . . Largest Group . | . . . . Highest-Rated Group . | . . . . Highest-Rated Ally . | . . . . Total Orders . | . . . . Ally Attacks . | . . . . Total Damage . | . . . . Kills . | . . . . Allies Corrupted . | . . . . Allies Melted . | . . . . Intel | -11 -10 -9 -9 ------- Run | Yrd Mat Mat Min Active Infowar (turns) 1022 | . 516 365 141 Seismic 845 | . 516 329 . ECM 177 | . . 36 141 Robot Analysis Total . | . . . . Derelict Logs Recovered 1 | . . . 1 Drone Launches . | . . . . Drone Recoveries . | . . . . Exploration | -11 -10 -9 -9 ------------- Run | Yrd Mat Mat Min Turns Passed 1417 | 99 618 559 141 Spaces Moved 1020 | 54 522 332 112 Core 7 | 7 . . . Treads 99 | 47 52 . . Legs 194 | . . 86 108 Wheels 19 | . . 15 4 Hover 701 | . 470 231 . Flight . | . . . . Fastest Speed 50 | 50 56 52 95 Average Speed 84 | 145 77 73 122 Slowest Speed 260 | 160 180 120 260 Overloaded Moves . | . . . . Propulsion Burnouts . | . . . . Robots Hopped . | . . . . Potential Cave-ins . | . . . . Cave-ins Triggered . | . . . . Exploration Rate (%) 35 | 3 77 35 27 Regions Visited 3 Branch Regions 1 Pre-discovered Areas . | . . . . Known Exits Taken . | . . . . Unknown Exits Taken 3 | 1 1 1 . Scrap Searched . | . . . . Spaces Dug 4 | . 3 1 . Terrain Destroyed 37 | . 34 3 . Melee . | . . . . Projectile 6 | . 3 3 . AOE 31 | . 31 . . Terrain Rammed . | . . . . Walls Destroyed . | . . . . Machines Disabled . | . . . . Actions | -11 -10 -9 -9 --------- Run | Yrd Mat Mat Min Total 1384 | 70 658 542 114 Wait 153 | . 56 97 . Move 1017 | 53 521 331 112 Hop . | . . . . Pick Up 34 | 9 8 17 . Fast Attach 15 | 4 5 6 . Attach 13 | 2 2 8 1 Detach 1 | . 1 . . Swap 18 | 1 10 7 . Drop 21 | . 11 10 . Fire 81 | 1 44 36 . Melee 30 | . . 29 1 Ram 1 | . . 1 . Kick . | . . . . Crush . | . . . . Escape Stasis . | . . . . Rewire . | . . . . Trap . | . . . . Miscellaneous . | . . . . Route ------- -11/Scrapyard -10/Materials (discovered 4 exits: *Mat x2 / [*Min] / [*Sub]) -9/Materials -9/Mines History --------- Turn | Location | Event 19 | -11/Scrapyard | Discovered new exit (range 15) 100 | -11/Scrapyard | Entered Materials 316 | -10/Materials | Build established: Mutant 362 | -10/Materials | Discovered new exit (range 16) 600 | -10/Materials | Derelicts attacked the area 600 | -10/Materials | Discovered new exit (range 8) 626 | -10/Materials | Discovered new exit (range 9) 661 | -10/Materials | Central database locked down 663 | -10/Materials | Discovered new exit (range 9) 718 | -10/Materials | Entered another Materials area 718 | -9/Materials | Evolved 2 slots: Propulsion x1, Utility x1 1101 | -9/Materials | Core integrity fell below 50% 1138 | -9/Materials | Lost 7 parts (1p5n1u) 1142 | -9/Materials | Destroyed 11 combat bots 1187 | -9/Materials | Central database locked down 1233 | -9/Materials | Discovered new exit (range 15) 1277 | -9/Materials | Entered Mines 1386 | -9/Mines | Assembled infested the area 1391 | -9/Mines | Assisted by a Guerilla fighting off Assembled 1411 | -9/Mines | Core integrity fell below 20% 1418 | -9/Mines | Destroyed by as-77689 with Assembled Heavy Rifle Last Messages --------------- 01305_ Destroyed Med. Matter Pod. 01305_ Destroyed Wheel. 01305_ K-01 Serf system corrupted by crushing effect. 01305_ K-01 Serf destroyed. 01310_ K-01 Serf collects debris. 01386_ ALERT: Infestation in the mines, dispatching Demolisher response squad. 01391_ A derelict emerges from the shadows: "You need to get out of here! I've been tracking a group of Assembled to figure out where they're coming from, and they're closing on this area, come on!" 01403_ CU-JUY(h): "I'll hold them off! Go on ahead or try to find another way!" 01404_ Aluminum Leg destroyed. 01405_ HV Slug penetrates Wall. 01406_ CU-JUY(h) destroyed. 01408_ Spread Laser destroyed. 01410_ Aluminum Leg destroyed. 01412_ The unstable cave ceiling collapses. 01413_ Power Shielding destroyed. 01418_ The unstable cave ceiling collapses. Map ----- +----------------------------------------------------+ | ?????????????????????????????????????????????? | | ?????????????????????????????????????????????? | | ?????????????????????????????????????????????? | | ?????????????????????????????????????????????? | | ?????????????????????????????????????????????? | | ?????????????????????????????????????????????? | | ?????????????????????????????????????????????? | | ?????????????????????????????????????????????? | | ?????????????????????????# ??????????????????? | | ????????????????????????? ?????????????????? | | ??????????????????????? ?????????????????? | | ???????????????###????? ??????????????????? | | ???????????????# ????? ??????????????????? | | ???????????????# ????? ??????????????????? | | ???????????????# ????? ???????????????????? | | ???????????????# ????? ???????????????????? | | ???????????????# ###?? a#???????????????????? | | ?????????????### #### #???????????????????? | | ???????????### ##??????????????????? | | ???????#####; ##?????????????????? | | ???????# "%" a #?????????????????? | | ???????????# d %* #?????????????????? | | ???????????# #?????????????????? | | ????????????# #??????????????????? | | ????????????## ##### #???????????? | | ?????????????##### @ #??????????? | | ?????????????????# # #### #??????????? | | ?????????####????# #### ###??????#??????????? | | ?????????# #????# #??# #???????????????????? | | ?????????# #????# #??# #???????????????????? | | ?????????# #????# #??# ???????????????????? | | ??????????# ##??## #??###???????????????????? | | ??????????# #### #####????????????????????? | | ??????????# ##???????????????????? | | ??????????# #???????????????????? | | ??????????# ???????????????? | | ??????????# ????????????? | | ?????????## ## ## ??????????? | | ????????## #### ##?? ???????????? | | ????????# #??# #????? ???????????? | | ???????## #??## #?????? ???????????? | | ???????# #???### #????????????????????? | | ???????# #?????## #????????????????????? | | ???????# #??????? #???????????????????? | | ???????# #??????# ??????????????????? | | ???????## ##??????# ???????????????????? | | ????????# #???????# ???????????????????? | | ????????# #???????# #????????????????????? | | ????????# #??????? ??????????????????????? | | ????????# #??????? ??????????????????????? | +----------------------------------------------------+ Best States ------------- Heat Dissipation 28 Energy Generation 14 Energy Capacity 250 Matter Stores 300 Matter Capacity 300 Sight Range 16 Terrain Scan Density 10 ECM Strength 1 Core Shielding 20 Power Shielding 33 Evasion (%) 55 Recoil Reduction 2 Item Schematics ----------------- Hover Unit | -10/Materials | Hacked Grenade Launcher | -10/Materials | Hacked Lgt. Ion Engine | -10/Materials | Hacked Signal Interpreter | -10/Materials | Hacked Sensor Array | -9/Materials | Hacked ECM Suite | -9/Materials | Hacked Robot Schematics ------------------ None Fabricated ------------ Nothing Repaired ---------- Nothing Studied --------- None Alien Tech Used ----------------- None Achievements -------------- Quantum Hacking Challenges ------------ None Game ------ Seed CannonAdvancedInitializer Manual? 0 Play Time 00:50:23 Cumulative 29.5 hours Start 2026.03.11 @ 17:27:34 End 2026.03.11 @ 18:20:33 Sessions 1 Manual Loads 0 Difficulty Rogue Special Mode None Game No. 27 Rogue 23 Adventurer 4 Explorer 0 Win Type - Total 0 Types 0/0/0/0/0/0/0/0/0/0 Lore% 12 Gallery% 19 Achievement% 20 Wizard Run 0 Options --------- Layout 0 ASCII 0 Keyboard 1 Movement Arrows Keybinds 0 Fullscreen 2 Font 32/CogWide Map View 78x50 Zoom Use 0% Tactical HUD 1 Map Filters NONE Filters NONE Steam 1 RUN: 174c01ea-5f72-4f6f-9368-7b443d1d38cc